bitfinex/quotes_BTCUSD_20250226
["timestamp","ask_amount","ask_price","bid_price","bid_amount"]
[1740607942451,0.00040483,85386.0,85385.0,0.6242386]
[1740607942588,0.00040483,85386.0,85385.0,0.45524142]
[1740607942924,0.00040483,85386.0,85385.0,0.54584075]
[1740607943289,0.00040483,85386.0,85385.0,1.09364075]
[1740607943491,0.00040483,85386.0,85385.0,1.07199167]
[1740607945675,0.00040483,85386.0,85385.0,1.09370646]
[1740607946536,0.00040483,85386.0,85385.0,1.1043735]
[1740607946758,0.00040483,85386.0,85385.0,1.2096893]
[1740607946936,0.00125263,85386.0,85385.0,1.2096893]
[1740607947359,0.00125263,85386.0,85385.0,1.22423015]
[1740607947901,0.00125263,85386.0,85385.0,1.20688629]
[1740607948227,0.00125263,85386.0,85385.0,1.1852715]
[1740607948608,0.00125263,85386.0,85385.0,0.503074]
[1740607948834,0.00125263,85386.0,85385.0,0.3274]
[1740607949030,0.00125263,85386.0,85385.0,0.34194085]
[1740607949172,0.00125263,85386.0,85385.0,0.51761485]
[1740607949774,0.17792463,85386.0,85385.0,0.3344]
[1740607949976,0.19792463,85386.0,85385.0,0.0071]
[1740607950426,0.19692463,85386.0,85385.0,0.0001]
[1740607950799,0.21792463,85386.0,85385.0,0.0071]
[1740607951204,0.21692463,85386.0,85385.0,0.0001]
[1740607951467,0.21692463,85386.0,85385.0,0.0071]
[1740607951663,0.21792463,85386.0,85385.0,0.0071]
[1740607951820,0.22833564,85388.0,85361.0,0.112823]
[1740607952024,0.09363351,85379.0,85362.0,0.0347128]
[1740607952437,0.234252,85378.0,85361.0,0.00040483]
[1740607953104,0.09363351,85379.0,85361.0,0.00040483]
[1740607953309,0.175715,85366.0,85361.0,0.00040483]
[1740607953840,0.3283,85402.0,85362.0,0.234296]
[1740607954035,0.001,85378.0,85363.0,0.3273]
[1740607954219,0.001,85378.0,85377.0,0.175691]
[1740607954368,0.17567,85388.0,85375.0,0.234258]
[1740607954592,0.09363351,85401.0,85389.0,0.175666]
[1740607954816,0.17568,85383.0,85377.0,0.3273]
[1740607955014,0.234222,85389.0,85377.0,0.3273]
[1740607955196,0.09363351,85401.0,85377.0,0.3273]
[1740607955398,0.09363351,85401.0,85378.0,0.01454085]
[1740607955772,0.175689,85378.0,85377.0,0.3273]
[1740607955966,0.234219,85391.0,85377.0,0.32770483]
[1740607956172,0.09363351,85392.0,85377.0,0.32770483]
[1740607956407,0.175689,85378.0,85377.0,0.32770483]
[1740607956963,0.175689,85378.0,85377.0,0.00040483]
[1740607957554,0.176689,85378.0,85377.0,0.00740483]
[1740607957984,0.175689,85378.0,85377.0,0.00040483]
[1740607958393,0.176689,85378.0,85377.0,0.00740483]
[1740607958738,0.175689,85378.0,85377.0,0.00040483]
[1740607958942,0.176689,85378.0,85377.0,0.00740483]
[1740607960219,0.175689,85378.0,85377.0,0.00040483]
[1740607960349,0.175689,85378.0,85377.0,0.00050483]
[1740607960553,0.176689,85378.0,85377.0,0.00650483]
[1740607960958,0.175689,85378.0,85377.0,0.00050483]
[1740607961162,0.176689,85378.0,85377.0,0.00650483]
[1740607961757,0.175689,85378.0,85377.0,0.00050483]
[1740607961976,0.176689,85378.0,85377.0,0.00650483]
[1740607963181,0.255889,85378.0,85377.0,0.00650483]
[1740607963618,0.71521566,85378.0,85377.0,0.00650483]
[1740607963844,0.175722,85362.0,85361.0,0.0004237]
[1740607964017,0.175722,85362.0,85361.0,0.00054555]
[1740607964018,0.251222,85362.0,85361.0,0.00054555]
[1740607964341,0.300122,85362.0,85361.0,0.00054555]
[1740607964968,0.301122,85362.0,85361.0,0.00054555]
[1740607965309,0.175769,85339.0,85314.0,0.000849]
[1740607965462,0.175769,85339.0,85338.0,0.00054514]
[1740607967357,0.176769,85339.0,85338.0,0.00054514]
[1740607967589,0.258169,85339.0,85338.0,0.00054514]
[1740607967816,0.306569,85339.0,85338.0,0.00054514]
[1740607968161,0.307569,85339.0,85338.0,0.00054514]
[1740607968584,0.306569,85339.0,85338.0,0.00054514]
[1740607969076,0.41789425,85339.0,85338.0,0.00654514]
[1740607969387,0.3079008,85339.0,85338.0,0.00654514]
[1740607969657,0.307569,85339.0,85338.0,0.00654514]
[1740607970244,0.307569,85339.0,85338.0,0.00054514]
[1740607970245,0.306569,85339.0,85338.0,0.00054514]
[1740607970417,0.307569,85339.0,85338.0,0.00064514]
[1740607970846,0.306569,85339.0,85338.0,0.00064514]
[1740607971049,0.1308,85339.0,85338.0,0.00064514]
[1740607971413,0.1308,85339.0,85338.0,0.17641614]
[1740607971622,0.1308,85339.0,85338.0,0.00064514]
[1740607972715,0.306569,85339.0,85338.0,0.00064514]
[1740607974372,0.307569,85339.0,85338.0,0.00064514]
[1740607974728,0.306569,85339.0,85338.0,0.00064514]
[1740607975157,0.307569,85339.0,85338.0,0.00064514]
[1740607975639,0.306569,85339.0,85338.0,0.00064514]
[1740607975840,0.1308,85339.0,85338.0,0.00064514]
[1740607976042,0.001,85339.0,85338.0,0.19095699]
[1740607976252,0.001,85339.0,85338.0,0.28181807]
[1740607977243,0.234222,85389.0,85360.0,0.175726]
[1740607977244,0.0802,85379.0,85360.0,0.175726]
[1740607977373,0.0802,85379.0,85360.0,0.19026685]
[1740607977576,0.0802,85379.0,85360.0,0.175726]
[1740607977799,0.0802,85379.0,85360.0,0.1932986]
[1740607978175,0.562529,85387.0,85360.0,0.1932986]
[1740607978388,0.0811,85392.0,85360.0,0.1932986]
[1740607979003,0.0018474,85361.0,85360.0,0.1932986]
[1740607979204,0.0018474,85361.0,85360.0,0.5205986]
[1740607979599,0.0018474,85361.0,85360.0,0.54176851]
[1740607980042,0.0823,85404.0,85403.0,0.175637]
[1740607980194,0.0008492,85410.0,85403.0,0.0175637]
[1740607980388,0.0008492,85410.0,85384.0,0.0136]
[1740607980389,0.0008492,85410.0,85401.0,0.17564]
[1740607980594,0.175626,85409.0,85401.0,0.17564]
[1740607980836,0.1764478,85408.0,85399.0,0.175644]
[1740607981008,0.0008208,85408.0,85398.0,0.01454085]
[1740607981211,0.0468049,85407.0,85398.0,0.234195]
[1740607981410,0.0468049,85407.0,85384.0,0.0136]
[1740607981411,0.175633,85406.0,85395.0,0.234205]
[1740607981634,0.175633,85406.0,85398.0,0.175646]
[1740607982209,0.175633,85406.0,85399.0,0.175645]
[1740607982398,0.175633,85406.0,85396.0,0.2342]
[1740607982599,0.0468049,85407.0,85397.0,0.02342]
[1740607982818,0.001,85406.0,85397.0,0.02342]
[1740607983373,0.175635,85404.0,85397.0,0.02342]
[1740607983808,0.176632,85406.0,85397.0,0.02342]
[1740607984068,0.09363351,85409.0,85372.0,0.21085156]
[1740607984276,0.09363351,85409.0,85347.0,0.0072]
[1740607984277,0.09363351,85389.0,85351.0,0.21085156]
[1740607984426,0.175699,85373.0,85372.0,0.0004049]
[1740607984645,0.0842409,85388.0,85372.0,0.0004049]
[1740607985237,0.0018474,85406.0,85372.0,0.0004049]
[1740607985452,0.0018474,85406.0,85375.0,0.00898054]
[1740607985619,0.2360234,85406.0,85376.0,0.0220237]
[1740607985889,0.17567,85387.0,85376.0,0.1977157]
[1740607986060,0.09363351,85405.0,85372.0,0.21125646]
[1740607986061,0.175699,85373.0,85372.0,0.0004049]
[1740607986275,0.256399,85373.0,85372.0,0.0004049]
[1740607987297,0.0828,85387.0,85372.0,0.0004049]
[1740607987481,0.0828,85387.0,85385.0,0.01454085]
[1740607987629,0.0828,85387.0,85378.0,0.01454085]
[1740607987851,0.0828,85387.0,85380.0,0.01454085]
[1740607988069,0.1323,85398.0,85380.0,0.01454085]
[1740607988295,0.0008474,85406.0,85374.0,0.01454085]
[1740607988505,0.0008474,85406.0,85378.0,0.01354085]
[1740607988687,0.0008474,85406.0,85397.0,0.175649]
[1740607988888,0.0008474,85406.0,85379.0,0.02332776]
[1740607989327,0.0008474,85406.0,85401.0,0.175641]
[1740607989505,0.0008474,85406.0,85379.0,0.02332776]
[1740607989506,0.0008474,85406.0,85403.0,0.175637]
[1740607989719,0.0008474,85406.0,85382.0,0.234241]
[1740607989931,0.0008474,85406.0,85403.0,0.175637]
[1740607990132,0.0008474,85406.0,85383.0,0.2599362]
[1740607990361,0.0008474,85406.0,85383.0,0.04908464]
[1740607990539,0.0497,85398.0,85383.0,0.0004049]
[1740607990861,0.234221,85390.0,85383.0,0.0004049]
[1740607991291,0.0487,85398.0,85383.0,0.0064049]
[1740607991558,0.0018474,85406.0,85384.0,0.01454085]
[1740607991759,0.0018474,85406.0,85383.0,0.0064049]
[1740607991971,0.0008474,85406.0,85383.0,0.0004049]
[1740607992174,0.001,85390.0,85383.0,0.0064049]
[1740607992370,0.175666,85389.0,85384.0,0.02406469]
[1740607992525,0.001,85390.0,85389.0,0.175666]
[1740607992996,0.001,85390.0,85389.0,0.19020685]
[1740607993381,0.0008474,85406.0,85390.0,0.01454085]
[1740607993602,0.0008474,85406.0,85398.0,0.175648]
[1740607993798,0.0018474,85406.0,85385.0,0.24877385]
[1740607993955,0.0018474,85406.0,85403.0,0.175637]
[1740607994298,0.0008474,85406.0,85391.0,0.01454085]
[1740607994443,0.0008474,85406.0,85385.0,0.234233]
[1740607994444,0.0008474,85406.0,85405.0,0.175633]
[1740607994648,0.0018474,85406.0,85404.0,0.175635]
[1740607994895,0.0018474,85406.0,85405.0,0.19017385]
[1740607995269,0.0008474,85406.0,85405.0,0.19017385]
[1740607995474,0.0008474,85406.0,85405.0,0.40102541]
[1740607997117,0.0018474,85406.0,85405.0,0.40102541]
[1740607997474,0.0008474,85406.0,85405.0,0.40102541]
[1740607997706,0.0008474,85406.0,85405.0,0.45619979]
[1740607997926,0.0018474,85406.0,85405.0,0.06217438]
[1740607998101,0.0018474,85406.0,85405.0,0.182633]
[1740607998287,0.0008474,85406.0,85389.0,0.21085156]
[1740607998486,0.0008474,85406.0,85393.0,0.234211]
[1740607998913,0.0008474,85406.0,85404.0,0.01454085]
[1740607999116,0.0008474,85406.0,85405.0,0.21952357]
[1740607999321,0.0008474,85406.0,85405.0,0.175633]
[1740607999519,0.0008474,85406.0,85405.0,0.01454085]
[1740607999736,0.0018474,85406.0,85405.0,0.02154085]
[1740607999935,0.1774784,85406.0,85405.0,0.007]
[1740608000138,0.0008474,85406.0,85370.0,0.01356]
[1740608000482,0.0008474,85406.0,85368.0,0.21085156]
[1740608000483,0.09363351,85401.0,85375.0,0.00973042]
[1740608000611,0.09363351,85401.0,85376.0,0.175693]
[1740608000821,0.175676,85384.0,85368.0,0.21085156]
[1740608001043,0.19787441,85401.0,85374.0,0.234261]
[1740608001242,0.09363351,85390.0,85365.0,0.234286]
[1740608001497,0.175676,85384.0,85365.0,0.234286]
[1740608001716,0.09363351,85390.0,85379.0,0.234247]
[1740608001902,0.09363351,85390.0,85383.0,0.19954809]
[1740608002213,0.09363351,85390.0,85383.0,0.02168435]
[1740608002360,0.09363351,85390.0,85371.0,0.01006718]
[1740608002708,0.09403841,85390.0,85371.0,0.234269]
[1740608002940,0.17567,85387.0,85378.0,0.175688]
[1740608003227,0.001,85384.0,85383.0,0.02154085]
[1740608003432,0.001,85384.0,85383.0,0.04011954]
[1740608003721,0.0004049,85390.0,85371.0,0.007]
[1740608003921,0.0014049,85390.0,85377.0,0.24879585]
[1740608004127,0.0014049,85390.0,85382.0,0.01454085]
[1740608004304,0.0004049,85390.0,85368.0,0.01454085]
[1740608004503,0.001,85384.0,85383.0,0.007]
[1740608005157,0.001,85384.0,85383.0,0.0486938]
[1740608005341,0.001,85384.0,85383.0,0.007]
[1740608005717,0.175671,85387.0,85379.0,0.01454085]
[1740608006040,0.2356259,85390.0,85382.0,0.007]
[1740608006239,0.257178,85383.0,85382.0,0.007]
[1740608007146,0.175688,85379.0,85370.0,0.175704]
[1740608007384,0.0815,85383.0,85371.0,0.05803013]
[1740608007580,0.175693,85377.0,85370.0,0.01454085]
[1740608007786,0.0815,85383.0,85367.0,0.0004237]
[1740608007999,0.175709,85368.0,85367.0,0.0004237]
[1740608008372,0.277809,85368.0,85367.0,0.0004237]
[1740608008550,0.326209,85368.0,85367.0,0.0004237]
[1740608008774,0.326209,85368.0,85338.0,0.0005239]
[1740608008775,0.35459755,85368.0,85338.0,0.0005239]
[1740608009097,0.34838851,85346.0,85338.0,0.0005239]
[1740608009300,0.45262941,85346.0,85338.0,0.0005239]
[1740608009625,0.49802941,85346.0,85338.0,0.0005239]
[1740608010059,0.49802941,85346.0,85345.0,0.00086685]
[1740608010262,0.195769,85339.0,85338.0,0.0005239]
[1740608010534,0.195769,85339.0,85338.0,0.00064514]
[1740608013631,0.19881977,85339.0,85338.0,0.00464514]
[1740608014049,0.195769,85339.0,85338.0,0.00064514]
[1740608014245,0.23082485,85339.0,85338.0,0.00064514]
[1740608014413,0.195769,85339.0,85338.0,0.00464514]
[1740608015062,0.00205095,85339.0,85338.0,0.00464514]
[1740608015370,0.17781995,85339.0,85338.0,0.00464514]
[1740608015548,0.26206085,85339.0,85338.0,0.00464514]
[1740608015749,0.35770348,85339.0,85338.0,0.00464514]
[1740608016153,0.35770348,85339.0,85330.0,0.0023563]
[1740608016154,0.175786,85331.0,85330.0,0.0023563]
[1740608016365,0.30737792,85331.0,85330.0,0.00247829]
[1740608016542,0.3053269,85331.0,85330.0,0.00247829]
[1740608017522,0.3053269,85331.0,85314.0,0.000849]
[1740608017523,0.175819,85315.0,85314.0,0.000849]
[1740608017833,0.17618291,85315.0,85314.0,0.000849]
[1740608018032,0.25598291,85315.0,85314.0,0.000849]
[1740608018238,0.255619,85315.0,85314.0,0.000849]
[1740608018655,0.30348291,85315.0,85314.0,0.000849]
[1740608019848,0.304119,85315.0,85314.0,0.000849]
[1740608020284,0.303119,85315.0,85314.0,0.000849]
[1740608020513,0.30349212,85315.0,85314.0,0.000849]
[1740608021304,0.38773302,85315.0,85314.0,0.000849]
[1740608021527,0.38873302,85315.0,85314.0,0.000849]
[1740608022220,0.3883599,85315.0,85314.0,0.000849]
[1740608022623,0.3873599,85315.0,85314.0,0.000849]
[1740608023422,0.44240392,85315.0,85314.0,0.000849]
[1740608023797,0.3873599,85315.0,85314.0,0.000849]
[1740608024325,0.25889663,85315.0,85314.0,0.000849]
[1740608026284,0.26089663,85315.0,85314.0,0.000849]
[1740608026755,0.25889663,85315.0,85314.0,0.000849]
[1740608027153,0.25889663,85315.0,85300.0,0.001029]
[1740608027154,0.175833,85308.0,85300.0,0.001029]
[1740608027356,0.02,85298.0,85296.0,0.0051141]
[1740608027570,0.175887,85282.0,85216.0,0.21085156]
[1740608027766,0.175887,85282.0,85211.0,0.1204]
[1740608027767,0.52915811,85282.0,85211.0,0.1204]
[1740608027967,0.62569719,85282.0,85211.0,0.0454]
[1740608028169,0.197026,85263.0,85211.0,0.0454]
[1740608028500,0.32835674,85263.0,85204.0,0.10251455]
[1740608028704,0.32669534,85263.0,85262.0,0.00552562]
[1740608028951,0.34025534,85263.0,85262.0,0.00552562]
[1740608029156,0.35479619,85263.0,85262.0,0.00552562]
[1740608029272,0.34025534,85263.0,85262.0,0.00552562]
[1740608030830,0.44361223,85263.0,85262.0,0.00552562]
[1740608031199,0.45815308,85263.0,85262.0,0.00552562]
[1740608031444,0.45515308,85263.0,85262.0,0.00552562]
[1740608031653,0.175963,85245.0,85200.0,0.0001]
[1740608031892,0.26109415,85245.0,85244.0,0.00054591]
[1740608032078,0.47503867,85245.0,85244.0,0.00054591]
[1740608032304,0.35518202,85245.0,85244.0,0.00054591]
[1740608032829,0.35518202,85245.0,85200.0,0.0001]
[1740608032830,0.175996,85229.0,85200.0,0.0001]
[1740608033029,0.56672351,85229.0,85200.0,0.0001]
[1740608033201,0.5515101,85229.0,85200.0,0.0001]
[1740608033438,0.5650701,85229.0,85200.0,0.0001]
[1740608033613,0.55110956,85229.0,85200.0,0.0001]
[1740608033937,0.56466956,85229.0,85200.0,0.0001]
[1740608034144,0.17640073,85229.0,85200.0,0.0001]
[1740608034422,0.189556,85229.0,85200.0,0.0001]
[1740608034572,0.27263363,85229.0,85228.0,0.006538]
[1740608034915,0.25907363,85229.0,85228.0,0.006538]
[1740608035342,0.175996,85229.0,85228.0,0.006538]
[1740608035993,0.08307763,85240.0,85228.0,0.005538]
[1740608036194,0.08307763,85256.0,85240.0,0.175972]
[1740608036415,0.08307763,85256.0,85231.0,0.01454085]
[1740608036952,0.00012128,85257.0,85229.0,0.01454085]
[1740608037270,0.175944,85255.0,85228.0,0.088738]
[1740608037438,0.175947,85253.0,85228.0,0.088738]
[1740608037646,0.175996,85229.0,85228.0,0.005538]
[1740608038229,0.234645,85235.0,85228.0,0.0236925]
[1740608038429,0.08307763,85254.0,85229.0,0.234661]
[1740608038798,0.175974,85240.0,85233.0,0.175986]
[1740608038999,0.08319889,85254.0,85240.0,0.175973]
[1740608039375,0.39511356,85300.0,85244.0,0.175964]
[1740608039376,0.001,85253.0,85244.0,0.175964]
[1740608039536,0.175955,85249.0,85245.0,0.0175964]
[1740608039753,0.01841373,85285.0,85246.0,0.14034085]
[1740608039954,0.01841373,85285.0,85246.0,0.35119241]
[1740608040156,0.234477,85296.0,85246.0,0.35119241]
[1740608040295,0.3283,85299.0,85257.0,0.01454085]
[1740608040496,0.3283,85299.0,85294.0,0.17586]
[1740608040701,0.9386,85329.0,85277.0,0.01454085]
[1740608040702,0.3283,85315.0,85277.0,0.01454085]
[1740608040898,0.17584,85305.0,85294.0,0.17586]
[1740608041141,0.3283,85328.0,85282.0,0.01454085]
[1740608041322,0.175825,85312.0,85302.0,0.175844]
[1740608041848,0.17623206,85312.0,85300.0,0.234465]
[1740608042019,0.00040706,85312.0,85284.0,0.01454085]
[1740608042219,0.00040706,85312.0,85294.0,0.01454085]
[1740608042417,0.00040706,85312.0,85277.0,0.21085156]
[1740608042644,0.00040706,85312.0,85306.0,0.175836]
[1740608042859,0.175837,85306.0,85278.0,0.24906485]
[1740608043051,0.00040706,85312.0,85278.0,0.24906485]
[1740608043052,0.175833,85308.0,85290.0,0.01454085]
[1740608043270,0.00040706,85312.0,85278.0,0.234527]
[1740608043442,0.23484206,85312.0,85297.0,0.234473]
[1740608043643,0.00040706,85312.0,85279.0,0.01454085]
[1740608043831,0.3283,85311.0,85265.0,0.234562]
[1740608044029,0.175893,85279.0,85278.0,0.007]
[1740608044607,0.234507,85286.0,85245.0,0.01012973]
[1740608044820,0.33035223,85285.0,85245.0,0.01012973]
[1740608044961,0.33035223,85285.0,85238.0,0.282435]
[1740608044962,0.3283,85285.0,85238.0,0.0478]
[1740608045378,0.56281,85284.0,85249.0,0.234605]
[1740608045581,0.17593,85261.0,85254.0,0.175944]
[1740608045779,0.3283,85283.0,85241.0,0.01454085]
[1740608045982,0.175932,85260.0,85252.0,0.175947]
[1740608046294,0.00040681,85285.0,85239.0,0.00661776]
[1740608046295,0.175973,85240.0,85239.0,0.00661776]
[1740608046495,0.175924,85264.0,85256.0,0.175939]
[1740608046696,0.3283,85280.0,85239.0,0.00661776]
[1740608047113,0.3283,85280.0,85230.0,0.234656]
[1740608047114,0.00205241,85279.0,85249.0,0.007]
[1740608047346,0.175953,85250.0,85249.0,0.007]
[1740608047856,0.234589,85256.0,85231.0,0.01454085]
[1740608048083,0.175949,85252.0,85245.0,0.175962]
[1740608048366,0.3283,85268.0,85231.0,0.01454085]
[1740608048569,0.3283,85268.0,85231.0,0.0104487]
[1740608048747,0.234558,85267.0,85231.0,0.0104487]
[1740608048944,0.175996,85229.0,85228.0,0.005538]
[1740608049847,0.504296,85229.0,85228.0,0.005538]
[1740608050267,0.504296,85229.0,85228.0,0.00565926]
[1740608050468,0.504296,85229.0,85228.0,0.01265926]
[1740608050671,0.61577181,85229.0,85228.0,0.01265926]
[1740608050873,0.51883685,85229.0,85228.0,0.00565926]
[1740608051074,0.51924497,85229.0,85228.0,0.00565926]
[1740608051507,0.53239685,85229.0,85228.0,0.00565926]
[1740608051860,0.517856,85229.0,85228.0,0.00565926]
[1740608052071,0.51826412,85229.0,85228.0,0.00565926]
[1740608052241,0.64847883,85229.0,85228.0,0.01165926]
[1740608052598,0.53380497,85229.0,85228.0,0.01165926]
[1740608052801,0.53280497,85229.0,85228.0,0.00565926]
[1740608053844,0.53239685,85229.0,85228.0,0.00565926]
[1740608054072,0.517856,85229.0,85228.0,0.00565926]
[1740608054272,0.60654723,85229.0,85228.0,0.00565926]
[1740608055229,0.176054,85201.0,85195.0,0.0004239]
[1740608055430,0.504354,85201.0,85200.0,0.0002233]
[1740608056039,0.523028,85201.0,85200.0,0.0002233]
[1740608056338,0.64288465,85201.0,85200.0,0.0002233]
[1740608056697,0.58566885,85201.0,85200.0,0.0002233]
[1740608056900,0.66346885,85201.0,85200.0,0.0008797]
[1740608057091,0.66387718,85201.0,85200.0,0.0008797]
[1740608057292,0.66367704,85201.0,85200.0,0.0008797]
[1740608057742,0.66367704,85201.0,85195.0,0.0004239]
[1740608057743,0.176064,85196.0,85195.0,0.0004239]
[1740608057917,0.176083,85187.0,85186.0,0.005453]
[1740608058099,0.19267887,85187.0,85186.0,0.005453]
[1740608058326,0.53892785,85185.0,85176.0,0.0004242]
[1740608058526,0.21063185,85183.0,85176.0,0.0004242]
[1740608058729,1.66059585,85183.0,85176.0,0.0004242]
[1740608058969,1.79683036,85183.0,85176.0,0.0004242]
[1740608059284,1.81039036,85183.0,85176.0,0.0004242]
[1740608059593,0.21064385,85177.0,85176.0,0.0004242]
[1740608059795,0.176157,85151.0,85150.0,0.005453]
[1740608059926,0.8378928,85151.0,85150.0,0.005453]
[1740608060282,0.835837,85151.0,85150.0,0.005453]
[1740608060485,0.85583085,85151.0,85150.0,0.005453]
[1740608060684,0.176174,85143.0,85113.0,0.005453]
[1740608060907,0.50653026,85143.0,85113.0,0.005453]
[1740608061044,1.39521485,85143.0,85113.0,0.005453]
[1740608061245,0.176188,85136.0,85113.0,0.005453]
[1740608061446,1.98434876,85136.0,85113.0,0.005453]
[1740608061650,0.176234,85114.0,85113.0,0.005453]
[1740608061852,0.50494243,85114.0,85113.0,0.005453]
[1740608062058,0.51948328,85114.0,85113.0,0.005453]
[1740608062259,0.51948328,85114.0,85079.0,0.10251455]
[1740608062260,0.196242,85110.0,85079.0,0.10251455]
[1740608062464,1.92024841,85110.0,85079.0,0.10251455]
[1740608062639,1.91819128,85110.0,85079.0,0.10251455]
[1740608062840,0.176261,85101.0,85079.0,0.10251455]
[1740608063080,0.20641906,85101.0,85079.0,0.10251455]
[1740608063299,0.20682749,85101.0,85079.0,0.10251455]
[1740608063620,0.19717795,85101.0,85079.0,0.10251455]
[1740608063741,0.21073795,85101.0,85079.0,0.10251455]
[1740608063951,0.17831821,85101.0,85079.0,0.10251455]
[1740608064165,0.19187821,85101.0,85079.0,0.10251455]
[1740608064764,0.176304,85080.0,85079.0,0.10251455]
[1740608065050,0.504604,85080.0,85079.0,0.10251455]
[1740608065260,0.176325,85070.0,85049.0,0.0082474]
[1740608065464,0.504625,85070.0,85049.0,0.0082474]
[1740608065770,0.50495568,85070.0,85049.0,0.0082474]
[1740608066123,0.50507728,85070.0,85049.0,0.0082474]
[1740608067702,0.5047466,85070.0,85049.0,0.0082474]
[1740608067905,0.50507728,85070.0,85050.0,0.01454085]
[1740608068033,0.0001216,85070.0,85056.0,0.01454085]
[1740608068239,0.1764466,85070.0,85049.0,0.0532474]
[1740608068460,0.17677728,85070.0,85049.0,0.0532474]
[1740608068663,0.17677728,85070.0,85049.0,0.0082474]
[1740608069026,0.50507728,85070.0,85049.0,0.2434054]
[1740608069199,0.0001216,85070.0,85069.0,0.176407]
[1740608069678,0.3283,85105.0,85070.0,0.09184085]
[1740608069880,0.24072209,85106.0,85100.0,0.37552295]
[1740608070086,0.00012209,85106.0,85105.0,0.176252]
[1740608072230,0.00012209,85106.0,85105.0,0.19079285]
[1740608072406,0.00012209,85106.0,85105.0,0.23749285]
[1740608072608,0.17637209,85106.0,85105.0,0.0001]
[1740608072811,0.2175084,85106.0,85105.0,0.0001]
[1740608073012,0.50672852,85106.0,85105.0,0.0001]
[1740608073213,0.50467209,85106.0,85105.0,0.0001]
[1740608073414,0.00012209,85106.0,85105.0,0.0001]
[1740608073637,0.00012209,85106.0,85105.0,0.176352]
[1740608074028,0.00012209,85106.0,85105.0,0.19089285]
[1740608074232,0.3283,85150.0,85106.0,0.01454085]
[1740608074430,0.00012207,85144.0,85138.0,0.176183]
[1740608074728,0.00012207,85144.0,85112.0,0.01454085]
[1740608074935,0.00012207,85144.0,85129.0,0.176202]
[1740608075135,0.176191,85135.0,85123.0,0.234953]
[1740608075482,0.234916,85137.0,85112.0,0.01454085]
[1740608075776,0.00012207,85144.0,85137.0,0.176184]
[1740608075915,0.17629507,85144.0,85137.0,0.176184]
[1740608076114,0.00012207,85144.0,85126.0,0.01454085]
[1740608076315,0.00012207,85144.0,85121.0,0.09397613]
[1740608076316,0.00012207,85144.0,85122.0,0.01454085]
[1740608076549,0.00012207,85144.0,85135.0,0.234919]
[1740608076761,0.17629407,85144.0,85137.0,0.176185]
[1740608077161,0.17629407,85144.0,85137.0,0.176184]
[1740608077366,0.17629407,85144.0,85122.0,0.01454085]
[1740608077367,0.00205524,85143.0,85100.0,0.035356]
[1740608077642,0.00012207,85144.0,85107.0,0.09397613]
[1740608077814,0.176205,85128.0,85121.0,0.176219]
[1740608077981,0.176105,85128.0,85121.0,0.176219]
[1740608078361,0.176208,85127.0,85120.0,0.176221]
[1740608078561,0.01356,85142.0,85121.0,0.176218]
[1740608078761,0.176207,85127.0,85109.0,0.234992]
[1740608078956,0.176207,85127.0,85120.0,0.176219]
[1740608079214,0.176207,85127.0,85118.0,0.234966]
[1740608079514,0.176203,85129.0,85112.0,0.01454085]
[1740608079716,0.01356,85142.0,85108.0,0.01454085]
[1740608079919,0.01356,85142.0,85121.0,0.234959]
[1740608080099,0.176205,85129.0,85123.0,0.176215]
[1740608080297,0.176197,85132.0,85121.0,0.234959]
[1740608080507,0.176205,85128.0,85121.0,0.176217]
[1740608080706,0.234926,85134.0,85107.0,0.10420182]
[1740608080968,0.0234926,85134.0,85105.0,0.0001]
[1740608081132,0.00205552,85133.0,85105.0,0.0001]
[1740608081335,0.035369,85140.0,85105.0,0.0001]
[1740608081515,0.035369,85140.0,85129.0,0.176202]
[1740608081717,0.234858,85158.0,85129.0,0.176202]
[1740608081718,0.176187,85137.0,85129.0,0.176202]
[1740608081976,0.01356,85149.0,85126.0,0.234943]
[1740608082186,0.176185,85138.0,85130.0,0.1762]
[1740608082310,0.234898,85143.0,85107.0,0.01454085]
[1740608082311,0.176181,85140.0,85107.0,0.01454085]
[1740608082520,0.176189,85136.0,85128.0,0.176205]
[1740608082718,0.176185,85138.0,85109.0,0.01454085]
[1740608083035,0.176184,85139.0,85131.0,0.176198]
[1740608083235,0.234881,85150.0,85130.0,0.176199]
[1740608083446,0.01356,85165.0,85133.0,0.176193]
[1740608083641,0.00203987,85164.0,85115.0,0.01454085]
[1740608083843,0.23688187,85164.0,85135.0,0.17619]
[1740608084086,0.23688187,85164.0,85113.0,0.23498]
[1740608084087,0.234843,85163.0,85122.0,0.01454085]
[1740608084247,0.234843,85163.0,85118.0,0.01454085]
[1740608084248,0.00203987,85162.0,85134.0,0.176191]
[1740608084453,0.176178,85141.0,85132.0,0.234927]
[1740608084766,0.176178,85141.0,85130.0,0.176201]
[1740608084967,0.176174,85143.0,85135.0,0.17619]
[1740608085148,0.15272218,85210.0,85125.0,0.01454085]
[1740608085149,0.234819,85172.0,85125.0,0.01454085]
[1740608085332,0.234819,85172.0,85128.0,0.01454085]
[1740608085333,0.17615,85155.0,85128.0,0.01454085]
[1740608085541,0.035354,85181.0,85143.0,0.0803]
[1740608085734,0.176152,85154.0,85146.0,0.234889]
[1740608085961,0.176154,85153.0,85146.0,0.234889]
[1740608086381,0.1238,85256.0,85134.0,0.24946285]
[1740608086585,0.01144097,85182.0,85132.0,0.01454085]
[1740608086839,0.01144097,85182.0,85131.0,0.0804]
[1740608086840,0.00216192,85182.0,85134.0,0.01454085]
[1740608087112,0.176135,85162.0,85156.0,0.176146]
[1740608087314,0.234809,85176.0,85158.0,0.176142]
[1740608087558,0.234794,85181.0,85141.0,0.01454085]
[1740608087926,0.176128,85166.0,85158.0,0.176141]
[1740608088065,0.176131,85164.0,85156.0,0.176145]
[1740608088257,0.176128,85166.0,85150.0,0.01454085]
[1740608088457,0.234831,85168.0,85150.0,0.01454085]
[1740608088657,0.234831,85168.0,85152.0,0.234874]
[1740608089004,0.176134,85163.0,85157.0,0.176143]
[1740608089230,0.234794,85181.0,85157.0,0.176143]
[1740608089436,0.176135,85162.0,85157.0,0.176143]
[1740608089612,0.176135,85162.0,85150.0,0.01454085]
[1740608089613,0.00012205,85182.0,85151.0,0.234876]
[1740608089819,0.00012205,85182.0,85153.0,0.01454085]
[1740608090017,0.176127,85166.0,85160.0,0.176137]
[1740608090218,0.176128,85166.0,85149.0,0.01454085]